bitfinex/quotes_BTCUSD_20240721
["timestamp","ask_amount","ask_price","bid_price","bid_amount"]
[1721567288742,0.15028046,67047.0,67046.0,0.87578179]
[1721567288968,0.15028046,67047.0,67046.0,0.86978179]
[1721567289834,0.15028046,67047.0,67046.0,0.87078179]
[1721567290385,0.16614451,67047.0,67046.0,0.57247979]
[1721567290770,0.16614451,67047.0,67046.0,0.87078179]
[1721567290973,0.15028046,67047.0,67046.0,0.87078179]
[1721567291742,0.15028046,67047.0,67046.0,0.746939]
[1721567291971,0.15028046,67047.0,67046.0,0.87078161]
[1721567292363,0.14928046,67047.0,67046.0,0.87078161]
[1721567292569,0.14928046,67047.0,67046.0,0.86978161]
[1721567292985,0.14928046,67047.0,67046.0,0.87178161]
[1721567293660,0.14928046,67047.0,67046.0,0.86978161]
[1721567294298,0.16593579,67047.0,67046.0,0.57147961]
[1721567294955,0.16593579,67047.0,67046.0,0.447637]
[1721567295160,0.16593579,67047.0,67046.0,0.57147999]
[1721567295381,0.16593579,67047.0,67046.0,0.447637]
[1721567295382,0.16693579,67047.0,67046.0,0.447637]
[1721567295611,0.16693579,67047.0,67046.0,0.57147999]
[1721567295839,0.16593579,67047.0,67046.0,0.57147999]
[1721567296256,0.15028046,67047.0,67046.0,0.57347999]
[1721567297780,0.15028046,67047.0,67046.0,0.12602699]
[1721567297991,0.15028046,67047.0,67046.0,0.12603041]
[1721567298212,0.1666219,67047.0,67046.0,0.12603215]
[1721567298426,0.1666219,67047.0,67046.0,0.27518315]
[1721567298831,0.21563537,67047.0,67046.0,0.27518315]
[1721567299060,0.1666219,67047.0,67046.0,0.57348515]
[1721567299281,0.15028046,67047.0,67046.0,0.87178715]
[1721567301473,0.15028046,67047.0,67046.0,0.87178605]
[1721567301885,0.16703579,67047.0,67046.0,0.87178605]
[1721567304857,0.16703579,67047.0,67046.0,0.87178606]
[1721567306298,0.16703579,67047.0,67046.0,0.57348406]
[1721567307794,0.16703579,67047.0,67046.0,0.449637]
[1721567307995,0.16703579,67047.0,67046.0,0.57348421]
[1721567308879,0.00918046,67047.0,67046.0,0.87178621]
[1721567309230,0.00918046,67047.0,67046.0,1.38636995]
[1721567309782,0.00818046,67047.0,67046.0,1.38636995]
[1721567311057,0.00818046,67047.0,67046.0,1.38436644]
[1721567311456,0.00918046,67047.0,67046.0,1.38436644]
[1721567312071,0.00818046,67047.0,67046.0,1.38436644]
[1721567312697,0.00818046,67047.0,67046.0,1.38636644]
[1721567313611,0.00818046,67047.0,67046.0,1.32446644]
[1721567313818,0.00818046,67047.0,67046.0,1.32846644]
[1721567314251,0.00818046,67047.0,67046.0,1.56648635]
[1721567314460,0.00818046,67047.0,67046.0,1.20462274]
[1721567314666,0.00818046,67047.0,67046.0,1.5664875]
[1721567314888,0.00818046,67047.0,67046.0,1.51223289]
[1721567315098,0.00818046,67047.0,67046.0,1.20562274]
[1721567315303,0.00818046,67047.0,67046.0,1.56748809]
[1721567316029,0.00818046,67047.0,67046.0,1.56348809]
[1721567316478,0.00818046,67047.0,67046.0,1.56848809]
[1721567317279,0.00818046,67047.0,67046.0,1.20662274]
[1721567317483,0.00818046,67047.0,67046.0,1.56848804]
[1721567317926,0.00818046,67047.0,67046.0,1.27018604]
[1721567317927,0.15118046,67047.0,67046.0,1.27018604]
[1721567318165,0.16713451,67047.0,67046.0,1.1158043]
[1721567318566,0.10083451,67047.0,67046.0,0.87778306]
[1721567318992,0.02413451,67047.0,67046.0,1.11280522]
[1721567319216,0.00818046,67047.0,67046.0,1.11280522]
[1721567319962,0.00818046,67047.0,67046.0,1.10780522]
[1721567320459,0.00818046,67047.0,67046.0,1.40610722]
[1721567320701,0.00818046,67047.0,67046.0,1.05555007]
[1721567320962,0.00818046,67047.0,67046.0,1.06054033]
[1721567321454,0.00818046,67047.0,67046.0,1.06354033]
[1721567322600,0.00818046,67047.0,67046.0,1.36184233]
[1721567322822,0.00818046,67047.0,67046.0,1.06354033]
[1721567323322,0.00818046,67047.0,67046.0,1.36184233]
[1721567324096,0.00818046,67047.0,67046.0,1.43814233]
[1721567324305,0.00818046,67047.0,67046.0,1.128541]
[1721567324511,0.00818046,67047.0,67046.0,1.43813883]
[1721567324729,0.00818046,67047.0,67046.0,1.128541]
[1721567324934,0.00818046,67047.0,67046.0,1.43813883]
[1721567325970,0.00818046,67047.0,67046.0,1.59252057]
[1721567326179,0.00818046,67047.0,67046.0,1.65332057]
[1721567326386,0.00818046,67047.0,67046.0,2.05107115]
[1721567327021,0.00818046,67047.0,67046.0,1.98398266]
[1721567327447,0.00818046,67047.0,67046.0,1.97268481]
[1721567327657,0.00818046,67047.0,67046.0,2.28225821]
[1721567330690,0.00818046,67047.0,67046.0,2.28225818]
[1721567332145,0.00818046,67047.0,67046.0,2.37168095]
[1721567332417,0.00818046,67047.0,67046.0,2.28225818]
[1721567333195,0.00818046,67047.0,67046.0,2.37165379]
[1721567334126,0.00818046,67047.0,67046.0,2.38225818]
[1721567334537,0.00818046,67047.0,67046.0,2.68047418]
[1721567334938,0.00818046,67047.0,67046.0,2.67747418]
[1721567335147,0.00818046,67047.0,67046.0,2.68347418]
[1721567335762,0.00818046,67047.0,67046.0,2.67747418]
[1721567336371,0.00818046,67047.0,67046.0,2.67247418]
[1721567336577,0.00818046,67047.0,67046.0,2.73647418]
[1721567336780,0.00818046,67047.0,67046.0,2.75947418]
[1721567337022,0.00818046,67047.0,67046.0,2.62166134]
[1721567337229,0.00818046,67047.0,67046.0,2.7454712]
[1721567337428,0.00818046,67047.0,67046.0,2.7594712]
[1721567337819,0.00818046,67047.0,67046.0,2.7734712]
[1721567338369,0.00818046,67047.0,67046.0,2.7594712]
[1721567338575,0.00818046,67047.0,67046.0,2.7734712]
[1721567339411,0.00818046,67047.0,67046.0,2.7594712]
[1721567339611,0.00818046,67047.0,67046.0,2.7734712]
[1721567340025,0.00818046,67047.0,67046.0,2.7594712]
[1721567340221,0.00818046,67047.0,67046.0,2.43594084]
[1721567340422,0.00818046,67047.0,67046.0,2.75947119]
[1721567340677,0.00818046,67047.0,67046.0,2.77347119]
[1721567341079,0.00818046,67047.0,67046.0,2.78747119]
[1721567342757,0.00818046,67047.0,67046.0,2.47794083]
[1721567342958,0.00818046,67047.0,67046.0,2.78747118]
[1721567343160,0.00818046,67047.0,67046.0,2.78747119]
[1721567343449,0.00818046,67047.0,67046.0,2.89899733]
[1721567345952,0.00818046,67047.0,67046.0,2.58945205]
[1721567346182,0.00818046,67047.0,67046.0,2.52768041]
[1721567347559,0.00818046,67047.0,67046.0,2.4161692]
[1721567349131,0.00818046,67047.0,67046.0,1.77602474]
[1721567349334,0.00818046,67047.0,67046.0,2.41617224]
[1721567352535,0.00818046,67047.0,67046.0,2.41617087]
[1721567353804,0.00818046,67047.0,67046.0,2.52766443]
[1721567354863,0.00818046,67047.0,67046.0,2.82596643]
[1721567355279,0.00818046,67047.0,67046.0,2.52766443]
[1721567355483,0.00818046,67047.0,67046.0,2.52766652]
[1721567355693,0.00818046,67047.0,67046.0,2.10663704]
[1721567355900,0.00818046,67047.0,67046.0,2.82596518]
[1721567356322,0.00818046,67047.0,67046.0,2.52766318]
[1721567357392,0.00818046,67047.0,67046.0,2.08555342]
[1721567357597,0.00818046,67047.0,67046.0,2.82598377]
[1721567357986,0.00818046,67047.0,67046.0,2.52768177]
[1721567358424,0.00818046,67047.0,67046.0,2.82598377]
[1721567358815,0.00818046,67047.0,67046.0,2.07432674]
[1721567359020,0.00818046,67047.0,67046.0,2.82598739]
[1721567359404,0.00818046,67047.0,67046.0,2.41616578]
[1721567359801,0.00818046,67047.0,67046.0,2.57092825]
[1721567361384,0.00818046,67047.0,67046.0,2.86923025]
[1721567362127,0.00818046,67047.0,67046.0,2.8692217]
[1721567362533,0.00818046,67047.0,67046.0,2.22908921]
[1721567362776,0.00818046,67047.0,67046.0,2.86922092]
[1721567364052,0.00818046,67047.0,67046.0,2.57091892]
[1721567364269,0.00818046,67047.0,67046.0,2.86922092]
[1721567364469,0.00818046,67047.0,67046.0,2.86922055]
[1721567365415,0.00818046,67047.0,67046.0,2.22908884]
[1721567365668,0.00818046,67047.0,67046.0,2.86922056]
[1721567367225,0.00818046,67047.0,67046.0,2.96922056]
[1721567367450,0.00818046,67047.0,67046.0,2.94222056]
[1721567368703,0.00818046,67047.0,67046.0,2.94221901]
[1721567372283,0.00818046,67047.0,67046.0,3.07622682]
[1721567372487,0.00818046,67047.0,67046.0,2.89052974]
[1721567372724,0.00818046,67047.0,67046.0,3.07624343]
[1721567374123,0.00818046,67047.0,67046.0,2.94221862]
[1721567374970,0.00818046,67047.0,67046.0,2.99221862]
[1721567375187,0.00818046,67047.0,67046.0,2.35208846]
[1721567375394,0.00818046,67047.0,67046.0,2.9922179]
[1721567378052,0.00818046,67047.0,67046.0,2.9422179]
[1721567378259,0.00818046,67047.0,67046.0,3.45506677]
[1721567379887,0.00818046,67047.0,67046.0,3.40506677]
[1721567381780,0.00818046,67047.0,67046.0,2.61161156]
[1721567382066,0.00818046,67047.0,67046.0,3.40506677]
[1721567382325,0.00818046,67047.0,67046.0,3.40506674]
[1721567388572,0.00818046,67047.0,67046.0,3.40506677]
[1721567389000,0.00818046,67047.0,67046.0,3.25030505]
[1721567389247,0.00818046,67047.0,67046.0,3.40506659]
[1721567390946,0.00818046,67047.0,67046.0,3.03046459]
[1721567391223,0.00818046,67047.0,67046.0,2.96966459]
[1721567391978,0.00818046,67047.0,67046.0,2.16498828]
[1721567392227,0.00818046,67047.0,67046.0,3.26796659]
[1721567392462,0.00818046,67047.0,67046.0,2.91966459]
[1721567393171,0.00809566,67047.0,67046.0,2.91966459]
[1721567393660,0.00809566,67047.0,67046.0,2.96966459]
[1721567393901,0.00809566,67047.0,67046.0,3.26796659]
[1721567394126,0.00809566,67047.0,67046.0,2.96966459]
[1721567394374,0.00809566,67047.0,67046.0,3.0315692]
[1721567394619,0.00809566,67047.0,67046.0,2.9815692]
[1721567394889,0.00809566,67047.0,67046.0,2.98156917]
[1721567397235,0.00809566,67047.0,67046.0,3.03156917]
[1721567397544,0.00809566,67047.0,67046.0,2.98156917]
[1721567397750,0.00809566,67047.0,67046.0,3.03156917]
[1721567397920,0.00809566,67047.0,67046.0,3.03156916]
[1721567400823,0.00809566,67047.0,67046.0,3.03156917]
[1721567401452,0.00809566,67047.0,67046.0,3.03156883]
[1721567401863,0.00809566,67047.0,67046.0,2.98156883]
[1721567402272,0.00809566,67047.0,67046.0,3.03156883]
[1721567403764,0.00809566,67047.0,67046.0,3.03156916]
[1721567404198,0.00809566,67047.0,67046.0,3.03156917]
[1721567404847,0.00809566,67047.0,67046.0,3.17446917]
[1721567405483,0.00809566,67047.0,67046.0,3.47277117]
[1721567407240,0.0078114,67047.0,67046.0,3.47277117]
[1721567413324,0.0078114,67047.0,67046.0,2.30788828]
[1721567413534,0.0078114,67047.0,67046.0,3.47277116]
[1721567413953,0.0078114,67047.0,67046.0,3.47277117]
[1721567417409,0.0078114,67047.0,67046.0,3.32987117]
[1721567419751,0.0078114,67047.0,67046.0,3.32987121]
[1721567420901,0.0078114,67047.0,67046.0,3.03156921]
[1721567421641,0.0078114,67047.0,67046.0,3.32987121]
[1721567421893,0.0078114,67047.0,67046.0,3.03156921]
[1721567422995,0.0078114,67047.0,67046.0,3.03158246]
[1721567423404,0.0078114,67047.0,67046.0,2.12621293]
[1721567423605,0.0078114,67047.0,67046.0,2.98158258]
[1721567425443,0.0078114,67047.0,67046.0,2.82682104]
[1721567425660,0.0078114,67047.0,67046.0,2.95858518]
[1721567425864,0.0078114,67047.0,67046.0,2.16512086]
[1721567426083,0.0078114,67047.0,67046.0,2.95859434]
[1721567426291,0.0853114,67047.0,67046.0,2.95861988]
[1721567426497,0.1517114,67047.0,67046.0,2.47513921]
[1721567426728,0.1517114,67047.0,67046.0,2.34097923]
[1721567429123,0.1517114,67047.0,67046.0,2.34099925]
[1721567429575,0.1517114,67047.0,67046.0,1.94847141]
[1721567429807,0.0853114,67047.0,67046.0,2.27910184]
[1721567432656,0.0853114,67047.0,67046.0,1.94847039]
[1721567432910,0.0853114,67047.0,67046.0,2.27910082]
[1721567435468,0.0853114,67047.0,67046.0,1.63892474]
[1721567435670,0.0853114,67047.0,67046.0,2.58864647]
[1721567438951,0.0853114,67047.0,67046.0,2.27910082]
[1721567439163,0.0853114,67047.0,67046.0,1.96955335]
[1721567439374,0.0853114,67047.0,67046.0,2.2790973]
[1721567442510,0.0853114,67047.0,67046.0,2.27909728]
[1721567442927,0.0853114,67047.0,67046.0,2.27909637]
[1721567444195,0.1498114,67047.0,67046.0,1.88079437]
[1721567444615,0.1498114,67047.0,67046.0,1.94785231]
[1721567445079,0.1498114,67047.0,67046.0,1.88079437]
[1721567445281,0.1498114,67047.0,67046.0,1.93383919]
[1721567445648,0.1498114,67047.0,67046.0,1.21162274]
[1721567445837,0.1498114,67047.0,67046.0,1.91890555]
[1721567446361,0.16562854,67047.0,67046.0,1.52119912]
[1721567447191,0.16562854,67047.0,67046.0,1.60224423]
[1721567447399,0.16562854,67047.0,67046.0,1.53519912]
[1721567448820,0.16562854,67047.0,67046.0,0.772939]
[1721567449026,0.16562854,67047.0,67046.0,1.08251808]
[1721567450202,0.16562854,67047.0,67046.0,1.06951808]
[1721567450627,0.1498114,67047.0,67046.0,1.07451808]
[1721567450851,0.1498114,67047.0,67046.0,1.06051808]
[1721567451062,0.1498114,67047.0,67046.0,1.05551808]
[1721567451260,0.1498114,67047.0,67046.0,1.1117382]
[1721567451509,0.1498114,67047.0,67046.0,1.1147382]
[1721567451714,0.1498114,67047.0,67046.0,0.13101563]
[1721567451914,0.1498114,67047.0,67046.0,0.13601563]
[1721567452270,0.17398885,67047.0,67046.0,0.13603372]
[1721567453575,0.17398885,67047.0,67046.0,0.13303372]
[1721567454000,0.17398885,67047.0,67046.0,0.28418472]
[1721567454685,0.17398885,67047.0,67046.0,0.27318472]
[1721567455121,0.17398885,67047.0,67046.0,0.57148672]
[1721567455559,0.1518114,67047.0,67046.0,0.57148836]
[1721567455993,0.17600518,67047.0,67046.0,0.57148836]
[1721567456219,0.17800518,67047.0,67046.0,0.57148836]
[1721567459886,0.1966417,67047.0,67046.0,0.57148836]
[1721567460541,0.17800518,67047.0,67046.0,0.57148836]
[1721567461148,0.17800518,67047.0,67046.0,0.447637]
[1721567461347,0.17800518,67047.0,67046.0,0.57148833]
[1721567464516,0.17800518,67047.0,67046.0,0.57148837]
[1721567464769,0.17800518,67047.0,67046.0,0.447637]
[1721567464970,0.17800518,67047.0,67046.0,0.57148841]
[1721567466227,0.17800518,67047.0,67046.0,0.27318641]
[1721567466447,0.17800518,67047.0,67046.0,0.57148841]
[1721567466654,0.17800518,67047.0,67046.0,0.27318641]
[1721567466858,0.17800518,67047.0,67046.0,0.57148841]
[1721567467067,0.1966417,67047.0,67046.0,0.12403541]
[1721567467304,0.3457907,67047.0,67046.0,0.12403541]
[1721567467516,0.3457907,67047.0,67046.0,0.000184]
[1721567467745,0.1966417,67047.0,67046.0,0.000184]
[1721567467954,0.3457907,67047.0,67046.0,0.000184]
[1721567468162,0.1966417,67047.0,67046.0,0.000184]
[1721567469426,0.3457907,67047.0,67046.0,0.000184]
[1721567469636,0.6440887,67047.0,67046.0,0.000184]
[1721567470083,0.8011887,67047.0,67046.0,0.000184]
[1721567470309,0.8511887,67047.0,67046.0,0.000184]
[1721567470519,0.8011887,67047.0,67046.0,0.000184]
[1721567477540,1.25386844,67047.0,67046.0,0.000184]
[1721567480246,1.25386844,67047.0,67046.0,0.12404644]
[1721567482750,0.95557044,67047.0,67046.0,0.12404644]
[1721567483175,0.33510518,67047.0,67046.0,0.12404644]
[1721567483389,0.03600518,67047.0,67046.0,0.57149944]
[1721567483605,0.03600518,67047.0,67046.0,0.65429262]
[1721567483863,0.0118114,67047.0,67046.0,1.25089662]
[1721567484077,0.03470357,67047.0,67046.0,1.127041]
[1721567484286,0.0118114,67047.0,67046.0,1.25089395]
[1721567484712,0.0118114,67047.0,67046.0,1.31189395]
[1721567485726,0.0098114,67047.0,67046.0,1.31189395]
[1721567485957,0.0078114,67047.0,67046.0,1.31189395]
[1721567486212,0.0078114,67047.0,67046.0,1.31489395]
[1721567486704,0.0098114,67047.0,67046.0,1.31488082]
[1721567488401,0.0098114,67047.0,67046.0,1.31188082]
[1721567488824,0.0098114,67047.0,67046.0,1.31688082]
[1721567489249,0.0078114,67047.0,67046.0,1.31588082]
[1721567489680,0.0078114,67047.0,67046.0,1.31788082]
[1721567492716,0.0078114,67047.0,67046.0,1.31588082]
[1721567492917,0.0078114,67047.0,67046.0,1.31188082]
[1721567493130,0.0078114,67047.0,67046.0,1.31488082]
[1721567493334,0.0078114,67047.0,67046.0,1.31988082]
[1721567493742,0.0078114,67047.0,67046.0,1.31688082]
[1721567494803,0.0078114,67047.0,67046.0,1.31188082]
[1721567495229,0.0078114,67047.0,67046.0,1.31588082]
[1721567495440,0.0078114,67047.0,67046.0,1.31788082]
[1721567495919,0.0078114,67047.0,67046.0,1.31788046]
[1721567496548,0.0078114,67047.0,67046.0,1.194041]
[1721567496775,0.0078114,67047.0,67046.0,1.31788046]
[1721567496983,0.0078114,67047.0,67046.0,1.194041]
[1721567497195,0.0078114,67047.0,67046.0,1.31788045]
[1721567499735,0.0078114,67047.0,67046.0,1.194041]
[1721567499948,0.0078114,67047.0,67046.0,1.31788045]
[1721567503012,0.0078114,67047.0,67046.0,1.194041]
[1721567503211,0.0078114,67047.0,67046.0,1.31788045]
[1721567503412,0.0078114,67047.0,67046.0,1.85418366]
[1721567503613,0.0078114,67047.0,67046.0,2.0085654]
[1721567503847,0.0078114,67047.0,67046.0,1.95632318]
[1721567504133,0.0078114,67047.0,67046.0,2.00099601]
[1721567504547,0.0078114,67047.0,67046.0,1.99699601]
[1721567504747,0.0078114,67047.0,67046.0,2.29529801]
[1721567504955,0.0078114,67047.0,67046.0,2.65127569]
[1721567505160,0.0078114,67047.0,67046.0,2.57926645]
[1721567505366,0.0078114,67047.0,67046.0,2.67161211]
[1721567505647,0.0078114,67047.0,67046.0,2.59326645]
[1721567505867,0.0078114,67047.0,67046.0,2.69094853]
[1721567506413,0.0078114,67047.0,67046.0,2.7357375]
[1721567506622,0.0078114,67047.0,67046.0,1.98402674]
[1721567506830,0.0078114,67047.0,67046.0,2.61417142]
[1721567507036,0.0078114,67047.0,67046.0,2.70340743]
[1721567507244,0.0078114,67047.0,67046.0,2.71417142]
[1721567507452,0.0078114,67047.0,67046.0,2.75338834]
[1721567507883,0.0078114,67047.0,67046.0,2.76738834]
[1721567508293,0.0078114,67047.0,67046.0,2.78138834]
[1721567508698,0.0078114,67047.0,67046.0,2.76938834]
[1721567508902,0.0078114,67047.0,67046.0,2.75538834]
[1721567509105,0.0078114,67047.0,67046.0,2.76938834]
[1721567509529,0.0078114,67047.0,67046.0,2.78338895]
[1721567509733,0.0078114,67047.0,67046.0,2.69417203]
[1721567510145,0.0078114,67047.0,67046.0,2.66617203]
[1721567511577,0.0078114,67047.0,67046.0,2.74705427]
[1721567512618,0.0078114,67047.0,67046.0,2.10689276]
[1721567512823,0.0078114,67047.0,67046.0,2.41642392]
[1721567513679,0.0078114,67047.0,67046.0,2.3495579]
[1721567516026,0.0078114,67047.0,67046.0,2.34955704]
[1721567519234,0.0078114,67047.0,67046.0,2.34955706]
[1721567519671,0.0078114,67047.0,67046.0,2.22574495]
[1721567519873,0.0078114,67047.0,67046.0,2.34955709]
[1721567522401,0.0078114,67047.0,67046.0,2.41640624]
[1721567523472,0.0078114,67047.0,67046.0,2.34955709]
[1721567523659,0.0078114,67047.0,67046.0,2.41640624]
[1721567524235,0.0078114,67047.0,67046.0,2.36640624]
[1721567524517,0.0078114,67047.0,67046.0,1.83445509]
[1721567524764,0.0078114,67047.0,67046.0,1.52492474]
[1721567524962,0.0078114,67047.0,67046.0,1.83447306]
[1721567525137,0.0078114,67047.0,67046.0,1.53617106]
[1721567525333,0.0078114,67047.0,67046.0,1.52217106]
[1721567525785,0.0078114,67047.0,67046.0,1.57440926]
[1721567526147,0.0078114,67047.0,67046.0,1.58840926]
[1721567526281,0.0078114,67047.0,67046.0,1.52217106]
[1721567526685,0.0078114,67047.0,67046.0,1.53617106]
[1721567526864,0.0078114,67047.0,67046.0,1.52217106]
[1721567527906,0.0078114,67047.0,67046.0,1.21262274]
[1721567528268,0.0078114,67047.0,67046.0,1.52219805]
[1721567528389,0.0078114,67047.0,67046.0,1.53619805]
[1721567530281,0.1524114,67047.0,67046.0,1.53619805]
[1721567530400,0.0872114,67047.0,67046.0,1.53619805]
[1721567531243,0.0872114,67047.0,67046.0,1.22662274]
[1721567531450,0.0872114,67047.0,67046.0,1.53619109]
[1721567534029,0.0078114,67047.0,67046.0,1.53619109]
[1721567534419,0.0078114,67047.0,67046.0,1.22662274]
[1721567534662,0.0078114,67047.0,67046.0,1.53618896]
[1721567535402,0.0078114,67047.0,67046.0,1.60098896]
[1721567535639,0.0078114,67047.0,67046.0,1.53618896]
[1721567536442,0.0078114,67047.0,67046.0,1.58083631]
[1721567537746,0.0078114,67047.0,67046.0,1.22662274]
[1721567537950,0.0078114,67047.0,67046.0,1.53618896]
[1721567539793,0.0078114,67047.0,67046.0,1.5808396]
[1721567541010,0.0078114,67047.0,67046.0,1.27128023]
[1721567541260,0.0078114,67047.0,67046.0,1.58084771]
[1721567542254,0.0078114,67047.0,67046.0,1.87914971]
[1721567543271,0.0078114,67047.0,67046.0,1.83449222]
[1721567544100,0.0078114,67047.0,67046.0,2.00059065]
[1721567544472,0.0078114,67047.0,67046.0,2.33124072]
[1721567544686,0.0078114,67047.0,67046.0,2.44290427]
[1721567545108,0.0078114,67047.0,67046.0,2.42056649]
[1721567545316,0.0078114,67047.0,67046.0,2.39757077]
[1721567546783,0.0078114,67047.0,67046.0,2.30824072]
[1721567547228,0.0078114,67047.0,67046.0,2.39758466]
[1721567547427,0.0078114,67047.0,67046.0,2.25447326]
[1721567549797,0.0078114,67047.0,67046.0,2.16512883]
[1721567550202,0.0078114,67047.0,67046.0,2.2544998]
[1721567550527,0.0078114,67047.0,67046.0,1.8344821]
[1721567550704,0.0078114,67047.0,67046.0,2.25449815]
[1721567550906,0.0078114,67047.0,67046.0,1.52492474]
[1721567551134,0.0078114,67047.0,67046.0,2.25449917]
[1721567553466,0.0078114,67047.0,67046.0,1.83448229]
[1721567553641,0.0078114,67047.0,67046.0,1.52492474]
[1721567553850,0.0078114,67047.0,67046.0,2.25450474]
[1721567556012,0.0078114,67047.0,67046.0,2.25450998]
[1721567557133,0.0078114,67047.0,67046.0,2.25451162]
[1721567557561,0.0078114,67047.0,67046.0,2.254515]
[1721567558059,0.0078114,67047.0,67046.0,2.16512573]
[1721567560582,0.0078114,67047.0,67046.0,2.16512623]
[1721567560929,0.0078114,67047.0,67046.0,2.16512361]
[1721567562545,0.0078114,67047.0,67046.0,2.27687284]
[1721567563327,0.0078114,67047.0,67046.0,2.27688466]
[1721567563678,0.0078114,67047.0,67046.0,2.27689137]
[1721567566950,0.0078114,67047.0,67046.0,2.27690916]
[1721567567355,0.0078114,67047.0,67046.0,2.16512356]
[1721567570189,0.0078114,67047.0,67046.0,1.85556691]
[1721567570395,0.0078114,67047.0,67046.0,2.16512356]
[1721567570606,0.0078114,67047.0,67046.0,1.52492474]
[1721567570807,0.0078114,67047.0,67046.0,2.16512356]
[1721567576828,0.0078114,67047.0,67046.0,2.16512349]
[1721567579974,0.0078114,67047.0,67046.0,1.83448135]
[1721567580180,0.1510114,67047.0,67046.0,0.66838275]
[1721567580391,0.16694854,67047.0,67046.0,0.028184]
[1721567580583,0.16694854,67047.0,67046.0,0.30118229]
[1721567580787,0.18930008,67047.0,67046.0,0.30118229]
[1721567580991,0.18930008,67047.0,67046.0,0.15203129]
[1721567581187,0.18930008,67047.0,67046.0,0.28718229]
[1721567581657,0.18930008,67047.0,67046.0,0.27818229]
[1721567581812,0.16694854,67047.0,67046.0,0.27818229]
[1721567582020,0.19130008,67047.0,67046.0,0.27818229]
[1721567582220,0.18930008,67047.0,67046.0,0.005184]
[1721567582427,0.18930008,67047.0,67046.0,0.12903877]
[1721567582786,0.19130008,67047.0,67046.0,0.12903877]
[1721567584429,0.19130008,67047.0,67046.0,0.12403877]
[1721567584636,0.19130008,67047.0,67046.0,0.27418977]
[1721567584838,0.19630008,67047.0,67046.0,0.27518977]
[1721567585268,0.19230008,67047.0,67046.0,0.27418977]
[1721567585444,0.19430008,67047.0,67046.0,0.150335]
[1721567585656,0.19430008,67047.0,67046.0,0.12503949]
[1721567586011,0.19630008,67047.0,67046.0,0.12603949]
[1721567586215,0.19330008,67047.0,67046.0,0.12503949]
[1721567586417,0.18930008,67047.0,67046.0,0.12403949]
[1721567586625,0.19130008,67047.0,67046.0,0.12503949]
[1721567586868,0.19330008,67047.0,67046.0,0.12503949]
[1721567587039,0.19130008,67047.0,67046.0,0.12403949]
[1721567587416,0.19330008,67047.0,67046.0,0.12503949]
[1721567588129,0.18930008,67047.0,67046.0,0.12403949]
[1721567588531,0.18930008,67047.0,67046.0,0.000184]
[1721567589120,0.19330008,67047.0,67046.0,0.001184]
[1721567589355,0.19130008,67047.0,67046.0,0.000184]
[1721567589561,0.19330008,67047.0,67046.0,0.001184]
[1721567590137,0.19330008,67047.0,67046.0,0.000184]
[1721567590138,0.19130008,67047.0,67046.0,0.000184]
[1721567590524,0.19530008,67047.0,67046.0,0.001184]
[1721567591318,0.19330008,67047.0,67046.0,0.000184]
[1721567592871,0.19530008,67047.0,67046.0,0.001184]
[1721567593301,0.19330008,67047.0,67046.0,0.000184]
[1721567593696,0.19530008,67047.0,67046.0,0.001184]
[1721567595690,0.34444908,67047.0,67046.0,0.001184]
[1721567596230,0.64274708,67047.0,67046.0,0.001184]
[1721567596421,0.64074708,67047.0,67046.0,0.000184]
[1721567596629,0.63674708,67047.0,67046.0,0.000184]
[1721567596828,0.34044908,67047.0,67046.0,0.001184]
[1721567597037,0.34244908,67047.0,67046.0,0.001184]
[1721567603458,0.19330008,67047.0,67046.0,0.001184]
[1721567604138,0.34244908,67047.0,67046.0,0.001184]
[1721567608327,0.34244908,67047.0,67046.0,0.12504366]
[1721567608959,0.64074708,67047.0,67046.0,0.12504366]
[1721567611528,0.64074708,67047.0,67046.0,0.12504409]
[1721567612343,0.62480994,67047.0,67046.0,0.12504409]
[1721567612550,0.32651194,67047.0,67046.0,0.12504409]
[1721567613401,0.17736294,67047.0,67046.0,0.12504409]
[1721567613814,0.32651194,67047.0,67046.0,0.12504409]
[1721567614332,0.17736294,67047.0,67046.0,0.12504409]
[1721567614557,0.11676294,67047.0,67046.0,0.12504409]
[1721567615210,0.26591194,67047.0,67046.0,0.12504409]
[1721567616209,0.26591194,67047.0,67046.0,0.001184]
[1721567616403,0.11676294,67047.0,67046.0,0.001184]
[1721567616649,0.22681804,67047.0,67046.0,0.001184]
[1721567617411,0.22681804,67047.0,67046.0,0.12504409]
[1721567618109,0.22681804,67047.0,67046.0,0.001184]
[1721567618944,0.22681804,67047.0,67046.0,0.12504091]
[1721567620388,0.22681804,67047.0,67046.0,0.1250409]
[1721567623855,0.22681804,67047.0,67046.0,0.12504089]
[1721567626170,0.22681804,67047.0,67046.0,0.27419189]
[1721567626652,0.14421804,67047.0,67046.0,0.27419189]
[1721567626844,0.14421804,67047.0,67046.0,0.27419188]
[1721567632240,0.03416294,67047.0,67046.0,0.27419188]
[1721567634177,0.03416294,67047.0,67046.0,0.57249342]
[1721567634426,0.03416294,67047.0,67046.0,1.30889742]
[1721567634631,0.0328553,67047.0,67046.0,1.30889742]
[1721567634809,0.0118114,67047.0,67046.0,1.30889742]
[1721567635262,0.0118114,67047.0,67046.0,1.30789742]
[1721567635475,0.0098114,67047.0,67046.0,1.30789742]
[1721567635698,0.0118114,67047.0,67046.0,1.30789742]
[1721567636316,0.0098114,67047.0,67046.0,1.30789742]
[1721567636585,0.0098114,67047.0,67046.0,1.184041]
[1721567636803,0.0078114,67047.0,67046.0,1.30788714]
[1721567637206,0.0088114,67047.0,67046.0,1.30788714]
[1721567637613,0.0078114,67047.0,67046.0,1.30788714]
[1721567637790,0.0078114,67047.0,67046.0,1.31288714]
[1721567637988,0.0078114,67047.0,67046.0,1.31088714]
[1721567638442,0.0078114,67047.0,67046.0,1.30788714]
[1721567638791,0.0078114,67047.0,67046.0,1.30888714]
[1721567639321,0.0078114,67047.0,67046.0,1.31288714]
[1721567640100,0.0078114,67047.0,67046.0,1.31088464]
[1721567640459,0.0078114,67047.0,67046.0,1.31388464]
[1721567640665,0.0078114,67047.0,67046.0,1.31088464]
[1721567640839,0.0078114,67047.0,67046.0,1.31288464]
[1721567641050,0.0078114,67047.0,67046.0,1.31088464]
[1721567642157,0.0078114,67047.0,67046.0,1.30988464]
[1721567642524,0.0078114,67047.0,67046.0,1.186041]
[1721567642724,0.0078114,67047.0,67046.0,1.30788464]
[1721567643089,0.0078114,67047.0,67046.0,1.30788465]
[1721567643299,0.0078114,67047.0,67046.0,1.30988465]
[1721567643491,0.0078114,67047.0,67046.0,1.31488465]
[1721567643701,0.0078114,67047.0,67046.0,1.31688465]
[1721567644053,0.0078114,67047.0,67046.0,1.30988465]
[1721567644261,0.0078114,67047.0,67046.0,1.31388465]
[1721567645018,0.0078114,67047.0,67046.0,1.31188465]
[1721567645741,0.0078114,67047.0,67046.0,1.31188467]
[1721567646941,0.0078114,67047.0,67046.0,1.76656841]
[1721567647157,0.0078114,67047.0,67046.0,1.99705389]
[1721567647365,0.0078114,67047.0,67046.0,1.95232763]
[1721567647561,0.0078114,67047.0,67046.0,1.99705389]
[1721567647840,0.0078114,67047.0,67046.0,1.99105389]